bitfinex-derivatives/quotes_ETHF0:USTF0_20250816
["timestamp","ask_amount","ask_price","bid_price","bid_amount"]
[1755358322322,0.2493,4410.9,4410.8,1.0594]
[1755358323010,3.2078,4411.0,4410.8,1.0594]
[1755358323214,3.4571,4411.0,4410.9,1.0594]
[1755358323612,4.0683,4411.0,4410.9,1.0594]
[1755358323817,4.4658,4411.0,4410.9,1.0594]
[1755358325321,4.7094,4411.0,4410.9,1.0594]
[1755358326422,4.3119,4411.0,4410.9,1.0594]
[1755358326722,3.8046,4411.0,4410.9,1.0594]
[1755358326911,3.6286,4411.0,4410.9,1.0594]
[1755358327513,3.2078,4411.0,4410.9,1.0594]
[1755358327713,33.86081197,4412.6,4410.9,1.0594]
[1755358327714,0.8327,4411.5,4410.9,1.0594]
[1755358327913,3.2078,4411.7,4411.3,0.4143]
[1755358327914,0.3475,4411.4,4411.3,0.4143]
[1755358328124,1.0087,4411.4,4411.3,1.0594]
[1755358328725,1.258,4411.4,4411.3,1.0594]
[1755358329918,1.5016,4411.4,4411.3,1.0594]
[1755358331020,0.513,4411.6,4411.4,0.398]
[1755358331225,0.2637,4411.6,4411.5,0.8123]
[1755358331432,0.2493,4411.6,4411.5,0.4143]
[1755358331620,0.2493,4411.6,4411.5,1.0594]
[1755358331925,0.4208,4411.6,4411.5,1.0594]
[1755358334024,0.2493,4411.6,4411.5,1.0594]
[1755358334533,1.5016,4411.6,4411.5,1.0594]
[1755358338131,0.3475,4411.4,4411.3,3.2078]
[1755358338327,0.1715,4411.0,4410.8,3.2078]
[1755358338529,1.5016,4410.9,4410.5,20.634]
[1755358338726,1.4548,4410.7,4410.6,0.5436]
[1755358339830,1.4548,4410.7,4410.6,0.789]
[1755358340129,1.4548,4410.7,4410.5,20.634]
[1755358340330,1.0681,4410.6,4410.5,20.634]
[1755358340532,1.4548,4410.5,4410.4,1.0396]
[1755358342324,0.8147,4410.5,4410.4,1.0396]
[1755358342530,0.4066,4410.5,4410.4,1.0396]
[1755358342737,0.4066,4410.8,4410.7,1.0396]
[1755358342935,0.8147,4410.8,4410.7,1.0396]
[1755358343231,0.2409,4410.7,4410.1,0.48283735]
[1755358343439,1.4548,4410.2,4410.1,1.14163735]
[1755358343832,1.4548,4410.2,4410.1,0.51023735]
[1755358344338,1.4548,4410.2,4410.1,0.34743735]
[1755358345341,1.4548,4410.2,4410.1,0.10203735]
[1755358346850,1.4548,4410.2,4410.1,0.89103735]
[1755358347240,1.4548,4410.2,4410.1,0.10203735]
[1755358348544,1.4548,4410.2,4410.1,0.89103735]
[1755358348748,1.4548,4410.2,4410.1,1.14163735]
[1755358350648,1.4548,4410.2,4410.1,0.89103735]
[1755358351346,1.4548,4410.2,4410.1,1.14163735]
[1755358351653,0.8147,4410.2,4410.1,1.14163735]
[1755358351851,1.4548,4410.2,4410.1,1.14163735]
[1755358354856,1.4548,4410.2,4410.1,0.89103735]
[1755358355057,1.4548,4410.2,4410.1,1.14163735]
[1755358357454,1.4774,4410.2,4410.1,0.10203735]
[1755358357761,1.4548,4410.2,4410.1,0.10203735]
[1755358357959,1.4548,4410.2,4409.3,3.5886]
[1755358358162,1.4548,4410.2,4408.6,0.45337]
[1755358358163,0.1672,4408.1,4407.3,4.07575502]
[1755358358353,0.1672,4407.8,4407.4,0.3808]
[1755358358554,3.375,4407.7,4407.6,0.5023]
[1755358358756,3.60610636,4407.7,4407.0,0.8883]
[1755358358954,3.375,4407.7,4407.0,0.2506]
[1755358359158,0.4081,4407.6,4407.5,0.5775]
[1755358359360,0.4081,4407.6,4407.5,1.2152]
[1755358359558,0.66043061,4407.6,4407.5,1.4658]
[1755358360059,0.66043117,4407.6,4407.5,1.4658]
[1755358360257,0.4081,4407.6,4407.5,1.4658]
[1755358360962,0.4081,4407.5,4407.4,0.4147]
[1755358361165,0.1672,4406.8,4406.1,3.2078]
[1755358361356,0.1672,4406.8,4405.9,0.2569]
[1755358361357,0.2409,4406.1,4405.9,0.6377]
[1755358361666,0.1672,4405.8,4405.7,0.9583]
[1755358361961,0.4081,4405.8,4405.7,0.9583]
[1755358362161,0.4081,4405.8,4405.7,1.2152]
[1755358362363,0.4081,4405.8,4405.7,1.4658]
[1755358364157,0.4081,4405.8,4405.7,0.8344]
[1755358364358,0.1672,4405.1,4405.0,0.9583]
[1755358364560,0.4081,4405.1,4405.0,1.2089]
[1755358364857,0.4081,4405.1,4405.0,1.4658]
[1755358365466,3.2078,4405.5,4405.3,0.5775]
[1755358365467,0.4081,4405.4,4405.3,0.5775]
[1755358365760,0.4081,4405.4,4405.3,1.2152]
[1755358365967,0.4081,4405.4,4405.3,1.4658]
[1755358366660,0.4081,4405.4,4404.6,0.2569]
[1755358366866,0.1672,4405.4,4405.3,0.6716]
[1755358367059,0.43443497,4405.4,4405.3,1.0524]
[1755358367361,0.67533497,4405.4,4405.0,0.7955]
[1755358367559,0.1672,4405.2,4405.1,0.2569]
[1755358367765,0.4081,4405.2,4405.1,0.2569]
[1755358367961,0.4081,4405.2,4405.1,1.0524]
[1755358368262,0.4081,4405.2,4405.1,1.2152]
[1755358368960,3.2078,4405.5,4405.4,0.8405]
[1755358369166,2.807,4405.5,4405.4,1.4702]
[1755358372856,0.6347,4405.4,4405.1,0.4999]
[1755358373064,1.0505,4405.2,4405.1,1.4702]
[1755358373864,0.6686,4405.2,4405.1,1.4702]
[1755358374066,0.4267,4405.2,4405.1,1.4702]
[1755358374266,0.1739,4405.2,4405.1,1.4702]
[1755358374465,3.1889,4405.5,4405.1,0.5852]
[1755358374662,2.807,4405.5,4405.4,1.4702]
[1755358375366,2.9809,4405.5,4405.4,1.4702]
[1755358375569,2.807,4405.5,4405.4,1.4702]
[1755358375757,3.3817,4406.0,4405.9,0.5852]
[1755358376062,4.52506137,4406.0,4405.9,1.4702]
[1755358377260,4.52506137,4406.0,4405.9,1.2149]
[1755358377660,3.89036137,4406.0,4405.7,0.2446]
[1755358377864,1.0505,4405.8,4405.7,0.417]
[1755358378064,0.4158,4405.6,4405.5,0.6602]
[1755358378369,1.31726137,4405.6,4405.5,1.2149]
[1755358380267,1.31726137,4405.6,4405.5,1.4702]
[1755358381174,0.69346137,4405.6,4405.5,1.4702]
[1755358381363,0.93536137,4405.6,4405.5,1.4702]
[1755358381562,0.44066137,4405.6,4405.5,1.4702]
[1755358381764,0.69346137,4405.6,4405.5,1.4702]
[1755358382564,1.07536137,4405.6,4405.5,1.4702]
[1755358382968,1.31726137,4405.6,4405.5,1.4702]
[1755358383480,0.44066137,4405.6,4405.5,1.4702]
[1755358383775,0.26676137,4405.6,4405.5,1.4702]
[1755358383971,0.26676137,4405.9,4405.5,0.5852]
[1755358384168,3.8425,4406.0,4405.5,0.5852]
[1755358384169,0.86859124,4405.8,4405.5,0.5852]
[1755358384374,0.26676137,4405.7,4405.6,1.4702]
[1755358384766,3.2078,4406.0,4405.7,0.885]
[1755358384970,3.3817,4406.0,4405.9,1.0851]
[1755358385171,3.3817,4406.0,4405.9,1.4702]
[1755358387074,3.98514221,4406.0,4405.9,1.4702]
[1755358388379,3.81124221,4406.0,4405.9,1.4702]
[1755358389476,0.60344221,4406.0,4405.9,1.4702]
[1755358389872,0.4267,4406.9,4406.8,1.4702]
[1755358390072,0.60497254,4406.9,4406.8,1.4702]
[1755358390773,0.60497254,4406.9,4406.8,4.4702]
[1755358390977,1.84028,4407.8,4407.7,1.4702]
[1755358391168,2.44324116,4407.8,4407.7,1.4702]
[1755358392178,0.97054116,4407.8,4407.7,1.4702]
[1755358392379,0.36758,4407.8,4407.7,4.678]
[1755358394978,0.78338,4407.8,4407.7,4.678]
[1755358395181,1.03618,4407.8,4407.7,4.678]
[1755358395375,1.41808,4407.8,4407.7,4.9493626]
[1755358395780,1.59198,4407.8,4407.7,4.9493626]
[1755358395979,0.54148,4407.8,4407.7,4.9493626]
[1755358396179,0.36758,4407.8,4407.7,4.9493626]
[1755358397383,1.03618,4407.8,4407.7,4.9493626]
[1755358397682,1.41808,4407.8,4407.7,4.9493626]
[1755358397877,1.59198,4407.8,4407.7,4.9493626]
[1755358398083,0.54148,4407.8,4407.7,4.9493626]
[1755358398582,1.16518,4407.8,4407.7,4.9493626]
[1755358398781,1.21468,4407.8,4407.7,3.6515626]
[1755358398982,1.84988,4407.8,4407.7,4.7019626]
[1755358399382,1.84988,4407.8,4407.7,4.3319626]
[1755358399679,1.84988,4407.8,4407.7,4.7019626]
[1755358400085,1.84988,4407.8,4407.7,4.9503626]
[1755358401784,1.84988,4407.8,4407.7,4.7019626]
[1755358402380,1.84988,4407.8,4407.7,4.9503626]
[1755358402582,1.59648,4407.8,4407.7,4.9503626]
[1755358403089,0.36758,4407.8,4407.7,4.9503626]
[1755358404378,0.6392,4409.1,4408.0,0.45341]
[1755358404582,0.9632,4409.1,4409.0,0.3405]
[1755358404785,1.2166,4409.1,4409.0,0.8636626]
[1755358405184,1.474,4409.1,4409.0,0.8636626]
[1755358405384,1.474,4409.1,4409.0,0.6981626]
[1755358405579,1.474,4409.1,4409.0,0.2713626]
[1755358407082,1.474,4409.1,4409.0,0.27083988]
[1755358407883,1.474,4409.1,4409.0,1.74463988]
[1755358409897,1.474,4409.1,4409.0,0.27083988]
[1755358410187,1.474,4409.1,4409.0,0.86313988]
[1755358411086,1.474,4409.1,4408.8,20.728]
[1755358411388,1.474,4409.0,4408.9,0.27082224]
[1755358412185,1.474,4409.0,4408.9,0.69762224]
[1755358412385,1.474,4409.0,4408.9,0.86312224]
[1755358413884,1.474,4409.0,4408.9,1.4738]
[1755358414080,1.474,4409.0,4408.9,1.49653694]
[1755358414286,1.474,4409.0,4408.9,1.12653694]
[1755358416088,3.2078,4409.2,4408.9,1.12653694]
[1755358416285,1.0573,4409.1,4409.0,0.27113694]
[1755358416591,1.474,4409.1,4409.0,0.52293694]
[1755358416988,1.2206,4409.1,4409.0,0.69793694]
[1755358417290,1.474,4409.1,4409.0,1.74493694]
[1755358417891,1.474,4409.1,4409.0,0.27113694]
[1755358418682,1.474,4409.1,4409.0,1.23343694]
[1755358418887,1.474,4409.1,4409.0,1.49653694]
[1755358419088,1.474,4409.1,4409.0,1.2254]
[1755358419488,1.474,4409.1,4409.0,1.4738]
[1755358420191,3.2078,4409.2,4409.0,1.4738]
[1755358420386,0.0226,4410.2,4409.2,0.6218]
[1755358420387,3.2078,4409.9,4409.2,0.6218]
[1755358420590,3.2078,4409.9,4409.8,1.4738]
[1755358420790,3.2078,4409.9,4409.8,22.1668]
[1755358421090,3.8833,4409.9,4409.8,22.1668]
[1755358421292,4.2651,4409.9,4409.8,22.1668]
[1755358421696,4.4284,4409.9,4409.8,22.1668]
[1755358421896,4.6818,4409.9,4409.8,22.1668]
[1755358423497,1.474,4409.9,4409.8,20.693]
[1755358423993,0.1656,4409.2,4409.1,0.00470851]
[1755358424295,1.474,4409.2,4409.1,0.00470851]
[1755358424494,1.68016968,4409.2,4409.1,0.00470851]
[1755358425601,1.69601861,4409.2,4409.1,0.00470851]
[1755358426999,1.69601861,4409.2,4408.7,20.737]
[1755358427201,1.474,4408.8,4408.7,20.737]
[1755358427401,1.69601861,4408.8,4408.7,20.737]
[1755358427702,1.69601861,4408.8,4408.7,21.1638]
[1755358427902,1.69601861,4408.8,4408.7,21.3293]
[1755358428098,1.69601861,4408.8,4408.7,21.9624]
[1755358428403,1.2206,4408.8,4408.7,22.2108]
[1755358428602,1.0573,4408.8,4408.7,22.2108]
[1755358428797,0.6755,4408.8,4408.7,22.2108]
[1755358429101,3.2078,4408.9,4408.7,22.2108]
[1755358429299,3.2078,4408.9,4408.7,21.3406]
[1755358429501,3.2078,4408.9,4408.8,1.4917]
[1755358431000,0.6469,4409.1,4408.9,0.9065]
[1755358431300,1.47557025,4409.0,4408.9,1.4917]
[1755358431504,0.6065,4408.8,4408.7,20.737]
[1755358431706,1.73396323,4408.8,4408.7,20.737]
[1755358433108,1.73396323,4408.8,4408.7,20.9967]
[1755358433300,1.73396323,4408.8,4408.7,21.1745]
[1755358433999,1.73396323,4408.8,4408.7,0.1778]
[1755358434303,1.73396323,4408.8,4408.6,20.715]
[1755358434505,1.5118,4408.7,4408.6,21.1525]
[1755358436101,1.5118,4408.7,4408.6,21.315]
[1755358436499,1.5118,4408.7,4408.6,21.9537]
[1755358436701,1.5118,4408.7,4408.6,22.2067]
[1755358437295,0.4294,4408.7,4408.6,22.2067]
[1755358437701,3.4556,4408.9,4408.6,22.2067]
[1755358437901,3.2078,4408.9,4408.8,1.4917]
[1755358440211,0.6469,4409.3,4408.8,1.4917]
[1755358440401,1.2534,4409.3,4409.2,0.5852]
[1755358440601,1.47556034,4409.3,4409.2,22.2027]
[1755358440800,0.22216034,4409.3,4409.2,22.2027]
[1755358441310,0.1635,4409.4,4409.3,0.8449]
[1755358441508,0.4113,4409.4,4409.3,1.4917]
[1755358441709,0.6772,4409.4,4409.3,1.4917]
[1755358441903,1.0763,4409.4,4409.3,1.4917]
[1755358443200,0.4294,4409.4,4409.3,1.4917]
[1755358443404,0.2584,4409.7,4409.3,0.5852]
[1755358443606,3.2078,4410.0,4409.9,0.8313]
[1755358443810,1.0763,4410.0,4409.9,22.1957]
[1755358446414,1.2534,4410.0,4409.9,22.1957]
[1755358446611,1.5118,4410.0,4409.9,22.1957]
[1755358451221,1.2534,4410.0,4409.9,22.1957]
[1755358452322,1.5118,4410.0,4409.9,22.1957]
[1755358452515,1.2534,4410.0,4409.9,22.1957]
[1755358454014,3.2078,4410.6,4410.5,0.9938]
[1755358454015,3.8143,4410.6,4410.5,0.9938]
[1755358454616,4.7196,4410.6,4410.5,0.6]
[1755358454817,4.7196,4410.6,4410.5,0.4375]
[1755358455328,4.7196,4410.6,4410.4,20.678]
[1755358455521,0.9053,4410.5,4410.4,20.678]
[1755358455720,1.5118,4410.5,4410.4,20.678]
[1755358457617,0.1635,4409.6,4409.5,0.2597]
[1755358457918,1.2534,4409.6,4409.5,22.1667]
[1755358458322,1.5118,4409.6,4409.5,22.1667]
[1755358461727,0.6772,4409.6,4409.5,22.1667]
[1755358461951,0.2598,4410.0,4409.5,21.2602]
[1755358462124,1.0951,4410.2,4410.1,1.2182]
[1755358462426,1.5124,4410.2,4410.1,22.1245]
[1755358462727,1.5124,4410.2,4410.1,20.666]
[1755358466526,1.5124,4410.1,4410.0,0.2648]
[1755358466829,4.7202,4410.1,4410.0,0.2648]
[1755358467130,4.7202,4410.1,4410.0,0.6036]
[1755358467431,4.7202,4410.1,4410.0,1.2182]
[1755358467928,4.7202,4410.1,4410.0,0.6036]
[1755358468117,4.7202,4410.1,4410.0,0.1622]
[1755358469224,4.94163752,4410.1,4410.0,0.1622]
[1755358469626,0.1764,4409.6,4409.5,0.7835]
[1755358469826,1.5124,4409.6,4409.5,21.8537]
[1755358470331,1.5124,4409.6,4409.5,22.1185]
[1755358470523,0.697,4409.6,4409.5,22.1185]
[1755358470723,0.4372,4409.6,4409.5,22.1185]
[1755358470930,1.0951,4409.9,4409.8,0.5868]
[1755358471128,1.3165559,4409.9,4409.8,1.4585]
[1755358471524,0.3981,4410.5,4409.8,0.5868]
[1755358471725,1.08269165,4410.4,4410.3,0.5868]
[1755358472029,1.73389165,4410.4,4410.3,1.4585]
[1755358472230,1.48079165,4410.4,4410.3,0.8516]
[1755358472424,1.48079165,4410.4,4410.3,1.4585]
[1755358472729,1.73389165,4410.4,4410.3,1.4585]
[1755358474027,1.73389165,4410.4,4410.3,0.8516]
[1755358474227,0.82289165,4410.4,4410.1,0.2648]
[1755358474530,1.5124,4410.2,4410.1,0.2648]
[1755358474730,1.1143,4409.6,4409.5,1.4585]
[1755358474929,1.5124,4409.6,4409.5,22.1185]
[1755358476739,1.0951,4409.6,4409.5,22.1185]
[1755358477036,0.6579,4409.8,4409.6,0.8717]
[1755358477331,0.697,4409.8,4409.7,1.4585]
[1755358477534,0.65880367,4409.8,4409.7,1.4585]
[1755358478333,0.91860367,4409.8,4409.7,1.4585]
[1755358478533,1.31670367,4409.8,4409.7,1.4585]
[1755358480032,1.48090367,4409.8,4409.7,1.4585]
[1755358480232,1.73400367,4409.8,4409.7,1.4585]
[1755358481638,1.5124,4409.8,4409.7,1.4585]
[1755358482036,1.2593,4409.8,4409.7,1.4585]
[1755358482539,1.0951,4409.8,4409.7,1.4585]
[1755358483443,1.5124,4409.8,4409.7,1.4585]
[1755358484831,1.5124,4409.8,4409.7,1.2182]
[1755358485038,0.697,4409.8,4409.7,1.4585]
[1755358485343,0.9185607,4409.8,4409.7,1.4585]
[1755358485545,0.697,4409.8,4409.7,1.4585]
[1755358485737,1.0951,4409.8,4409.7,1.4585]
[1755358486044,3.2078,4410.0,4409.7,0.5868]
[1755358486244,0.21992916,4409.9,4409.8,1.4585]
[1755358486439,3.4676,4410.0,4409.8,0.5868]
[1755358486633,3.4676,4410.0,4409.3,0.0226]
[1755358486634,4.3029,4410.0,4409.9,22.1175]
[1755358486837,4.94013446,4410.0,4409.9,22.1175]
[1755358487043,4.94013446,4410.0,4409.9,21.8772]
[1755358487342,4.94013446,4410.0,4409.9,21.5106]
[1755358488344,4.7202,4410.0,4409.9,21.5106]
[1755358488538,4.94015072,4410.0,4409.9,21.5106]
[1755358489837,4.94015072,4410.0,4409.9,21.9036]
[1755358490040,4.94015072,4410.0,4409.9,22.1472]
[1755358490244,4.94015072,4410.0,4409.9,21.9036]
[1755358490945,1.73235072,4410.0,4409.9,21.9036]
[1755358491339,0.82135072,4410.0,4409.4,0.393]
[1755358491544,1.4455,4409.5,4409.4,1.2395]
[1755358491742,1.4455,4409.5,4409.4,0.4189]
[1755358492047,1.6655807,4409.5,4409.4,21.0779]
[1755358492642,1.6655807,4409.5,4409.4,20.659]
[1755358493538,0.3549,4408.3,4408.1,2.85302851]
[1755358493840,0.2407,4406.9,4406.8,0.8337]
[1755358494036,0.69056122,4406.9,4406.8,1.0642]
[1755358494241,0.69056122,4406.9,4405.8,39.1274]
[1755358494448,0.4707,4406.6,4406.5,0.1747]
[1755358494648,4.01024927,4406.6,4406.5,0.2436]
[1755358495149,4.01024927,4406.6,4406.5,0.5]
[1755358495940,4.01024927,4406.6,4406.5,0.6747]
[1755358497150,4.01024927,4406.6,4406.5,0.2436]
[1755358497340,4.01024927,4406.6,4406.2,0.5]
[1755358497341,3.78024927,4406.6,4406.2,0.5]
[1755358497546,0.2407,4406.3,4406.2,0.2564]
[1755358497744,0.2407,4406.1,4406.0,0.3372]
[1755358498043,4.01024927,4406.1,4406.0,0.8337]
[1755358498247,4.01024927,4406.1,4406.0,1.2267]
[1755358498440,4.01024927,4406.1,4406.0,1.4831]
[1755358498644,4.01024927,4406.1,4406.0,1.0901]
[1755358498845,4.01024927,4406.1,4406.0,0.2436]
[1755358500353,4.01024927,4406.1,4406.0,0.5]
[1755358500544,4.01024927,4406.1,4406.0,0.6747]
[1755358500855,4.01024927,4406.1,4406.0,1.4831]
[1755358503745,3.53954927,4406.1,4406.0,1.4831]
[1755358504648,3.2078,4406.1,4406.0,1.4831]
[1755358506156,3.49901837,4406.1,4406.0,1.4831]
[1755358507452,3.49898446,4406.1,4406.0,1.4831]
[1755358508651,3.2078,4406.1,4406.0,1.4831]
[1755358508957,2.54,4406.1,4406.0,1.5057]
[1755358509253,3.2078,4407.6,4407.5,0.3372]
[1755358509462,3.49909872,4407.6,4407.5,0.8372]
[1755358509647,0.29129872,4407.6,4407.5,0.8372]
[1755358509852,1.48429872,4407.6,4407.5,0.8372]
[1755358510053,0.29129872,4407.6,4407.5,0.8372]
[1755358510355,1.4455,4407.6,4407.5,0.5936]
[1755358510659,1.72857142,4407.6,4407.5,0.5936]
[1755358511047,1.72857142,4407.6,4406.6,3.2078]
[1755358511048,0.2482,4407.4,4406.6,3.2078]
[1755358511254,0.8629,4407.2,4406.5,0.2564]
[1755358511452,0.4047,4406.6,4406.5,0.5936]
[1755358511752,0.6529,4406.6,4406.5,0.8372]
[1755358512255,1.0151,4406.6,4406.5,0.8372]
[1755358515365,1.193,4406.6,4406.5,0.8372]
[1755358515565,1.7553094,4406.6,4406.5,0.8372]
[1755358517367,1.7553094,4406.6,4406.5,0.1625]
[1755358518167,1.7553094,4406.6,4406.5,0.4189]
[1755358519361,1.75602322,4406.6,4406.5,0.4189]
[1755358519762,1.75602322,4406.6,4406.5,0.5936]
[1755358519969,0.31052322,4406.6,4406.5,0.8551]
[1755358520275,0.31052322,4406.6,4406.5,21.6251]
[1755358520468,0.04342322,4406.6,4406.5,21.6251]
[1755358520764,0.2505,4407.6,4407.4,0.001]
[1755358520974,1.0677,4407.6,4407.5,0.4247]
[1755358521163,1.90821517,4407.6,4407.5,0.4247]
[1755358521360,0.2505,4407.6,4407.5,0.4247]
[1755358521568,0.424,4407.6,4407.5,0.4247]
[1755358521765,1.2433,4407.6,4407.5,0.4247]
[1755358521967,0.2505,4407.6,4407.5,0.1678]
[1755358522369,0.66530122,4407.6,4407.5,0.1678]
[1755358522564,0.424,4408.1,4407.5,0.1678]
[1755358522759,0.1735,4408.1,4408.0,0.4247]
[1755358523159,0.1735,4408.3,4408.1,0.2569]
[1755358523369,0.424,4408.5,4408.4,0.001]
[1755358523669,1.1021,4408.0,4407.9,3.2078]
[1755358523862,1.4967,4408.0,4407.9,3.2078]
[1755358524063,1.4967,4408.0,4407.9,3.3746]
[1755358524267,1.4967,4408.0,4407.9,3.2078]
[1755358525369,1.4967,4408.0,4406.9,0.45354]
[1755358525370,1.28616547,4408.0,4407.0,0.6443]
[1755358525669,1.4967,4407.1,4407.0,1.2393]
[1755358527763,1.4967,4407.1,4406.6,20.797]
[1755358527967,1.4967,4406.8,4406.7,0.9879]
[1755358528169,1.4967,4406.8,4406.7,1.2393]
[1755358529869,1.4967,4406.8,4406.7,0.1668]
[1755358530265,0.5982,4406.8,4406.1,21.0735]
[1755358530465,0.5982,4406.5,4406.4,0.9879]
[1755358530661,1.4967,4406.5,4406.4,0.9879]
[1755358531375,1.4967,4406.5,4406.4,0.6005]
[1755358533063,1.4967,4406.2,4406.1,21.6649]
[1755358533269,1.4967,4406.2,4406.1,20.9798]
[1755358533471,0.6451,4406.7,4406.1,21.408]
[1755358533773,0.83647269,4406.6,4406.5,0.3436]
[1755358533976,0.83647269,4406.6,4406.5,0.9879]
[1755358534271,0.48877269,4406.6,4406.5,1.4998]
[1755358534474,0.91139988,4406.6,4406.5,1.4998]
[1755358534678,1.48159988,4406.6,4406.5,1.4998]
[1755358534871,1.73499988,4406.6,4406.5,1.4998]
[1755358536175,1.73499988,4406.6,4406.5,1.2393]
[1755358537477,1.08699988,4406.6,4406.5,1.4998]
[1755358537977,1.73499988,4406.6,4406.5,1.2393]
[1755358538674,1.73499988,4406.6,4406.5,0.4237]
[1755358538871,0.83649988,4406.6,4406.3,0.2569]
[1755358539073,0.6451,4406.4,4405.9,3.5952]
[1755358539379,0.5982,4406.4,4406.3,1.4998]
[1755358539679,1.4967,4406.4,4406.3,1.4998]
[1755358539881,1.4967,4406.4,4406.3,1.2393]
[1755358540481,3.2078,4406.8,4406.3,1.2393]
[1755358540682,3.2078,4406.8,4406.6,1.2393]
[1755358540683,1.5596511,4406.7,4406.6,1.2393]
[1755358540981,0.5982,4406.1,4406.0,0.8519]
[1755358541179,1.4967,4406.1,4406.0,1.2393]
[1755358541394,1.4967,4406.1,4405.9,3.2078]
[1755358541691,1.4967,4406.0,4405.9,3.2078]
[1755358541901,1.4967,4406.0,4405.9,3.3746]
[1755358542079,1.4967,4406.0,4405.9,3.6315]
[1755358542278,1.4967,4406.0,4405.9,4.1957]
[1755358542473,1.4967,4406.0,4405.9,4.4471]
[1755358542984,1.4967,4406.0,4405.9,1.2393]
[1755358544975,1.2476,4405.8,4405.7,0.3436]
[1755358545173,1.4967,4405.8,4405.7,1.2393]
[1755358547887,0.5982,4405.8,4405.4,20.797]
[1755358548085,1.4967,4405.5,4405.4,20.797]
[1755358548385,1.4967,4405.5,4405.4,20.9638]
[1755358548985,1.4967,4405.5,4405.4,21.9871]
[1755358550678,0.8528,4406.1,4406.0,0.5824]
[1755358550879,0.5901,4406.1,4405.4,21.046]
[1755358551185,1.4888,4405.5,4405.4,21.9932]
[1755358551783,0.8987,4405.4,4404.8,0.249]
[1755358552085,1.4888,4404.9,4404.8,0.8314]
[1755358552288,1.4888,4404.9,4404.8,21.6394]
[1755358552582,1.4888,4404.9,4404.8,22.2705]
[1755358552890,1.4888,4404.9,4404.8,20.808]
[1755358553185,0.8987,4404.8,4404.5,0.6138]
[1755358553487,1.4888,4404.6,4404.5,1.1962]
[1755358553787,1.4888,4404.6,4404.5,22.0082]
[1755358554083,1.4888,4404.6,4404.5,21.7592]
[1755358554283,1.4888,4404.6,4404.5,22.0082]
[1755358556088,1.4888,4404.6,4404.5,20.812]
[1755358556291,1.4888,4404.6,4404.5,21.2339]
[1755358556589,1.4888,4404.6,4404.5,22.0082]
[1755358559087,0.8399,4404.2,4404.1,4.404]
[1755358559279,1.4888,4404.2,4404.1,25.4663]
[1755358559484,1.4888,4405.0,4404.9,0.1729]
[1755358559684,1.4888,4405.0,4404.9,0.4219]
[1755358559988,1.4888,4405.0,4404.9,0.5892]
[1755358560188,1.4888,4405.0,4404.9,1.1962]
[1755358560690,1.4888,4405.0,4404.9,0.5892]
[1755358560984,0.8987,4404.9,4404.6,0.6138]
[1755358561188,1.4888,4404.7,4404.5,20.81]
[1755358561394,1.4888,4404.6,4404.5,20.81]
[1755358561591,1.4888,4404.6,4404.5,21.2319]
[1755358561986,1.4888,4404.6,4404.5,21.764]
[1755358563393,4.6966,4404.6,4404.5,21.764]
[1755358564296,4.6966,4404.6,4404.5,22.0062]
[1755358564495,3.2078,4404.6,4404.5,22.0062]
[1755358564787,0.4322,4404.6,4404.5,22.2725]
[1755358565092,1.4888,4404.6,4404.5,20.9829]
[1755358565394,1.4888,4404.6,4404.5,21.3992]
[1755358565585,1.4888,4404.6,4404.5,22.0062]
[1755358566099,0.6489,4405.0,4404.5,21.3924]
[1755358566292,1.4888,4405.0,4404.9,0.8314]
[1755358566491,1.4888,4405.0,4404.9,1.1962]
[1755358566888,1.4888,4405.0,4404.5,20.81]
[1755358567096,3.2078,4405.1,4404.5,20.81]
[1755358567097,1.0758,4404.9,4404.7,1.0233]
[1755358567395,1.4888,4404.8,4404.7,0.5824]
[1755358567590,1.4888,4404.8,4404.7,0.1729]
[1755358568193,1.4888,4404.8,4404.5,20.81]
[1755358568396,0.5901,4404.8,4404.5,20.81]
[1755358568595,1.4888,4404.6,4404.5,20.9829]
[1755358568893,1.4888,4404.6,4404.5,22.0062]
[1755358569696,0.8528,4404.6,4404.5,22.2725]
[1755358569896,0.2627,4404.6,4404.5,22.2725]
[1755358570296,1.0619,4404.6,4404.5,22.2725]
[1755358571199,1.4888,4404.6,4404.5,22.2725]
[1755358573005,1.4888,4404.6,4404.5,22.0062]
[1755358574102,1.4888,4404.6,4404.5,22.2725]
[1755358574103,1.239,4404.6,4404.5,22.2725]
[1755358574294,0.6757,4404.6,4404.5,22.2725]
[1755358574702,0.8528,4404.6,4404.5,21.6414]
[1755358575001,1.4888,4404.6,4404.5,22.0062]
[1755358575699,1.4888,4404.6,4404.5,21.3992]
[1755358575895,0.5901,4404.2,4404.1,20.9549]
[1755358576103,1.4888,4404.2,4404.1,21.5687]
[1755358576404,1.4888,4404.2,4404.1,21.9782]
[1755358578604,1.48502516,4404.2,4404.1,21.9782]
[1755358584709,1.48502516,4404.2,4403.5,3.2078]
[1755358584911,3.2078,4404.6,4403.1,0.10219956]
[1755358584912,1.5036,4403.2,4403.1,0.10219956]
[1755358585208,1.5036,4403.2,4403.1,0.52589956]
[1755358585604,1.5036,4403.2,4403.1,0.10219956]
[1755358587206,1.5036,4403.2,4403.1,1.08229956]
[1755358587409,1.5036,4403.2,4403.1,1.34519956]
[1755358588005,1.5036,4403.2,4403.1,0.69919956]
[1755358588300,1.5036,4403.2,4403.1,0.52589956]
[1755358588501,1.5036,4403.2,4403.1,0.26549956]
[1755358590009,1.5036,4403.2,4403.1,0.10219956]
[1755358595116,1.5036,4403.2,4403.1,1.34519956]